fUSD/lending_fUSD_20250320
["ID","MTS","AMOUNT","RATE_DAILY","PERIOD"]
[356482612,1742511048871,-151.244997,0.00055,120]
[356482613,1742511048880,-151.0,0.00055,120]
[356482614,1742511048889,-151.0,0.00055,120]
[356482615,1742511048899,-151.0,0.00055,120]
[356482616,1742511048909,-500.0,0.00055068,120]
[356482617,1742511048918,-500.0,0.00055068,120]
[356482618,1742511048928,-500.0,0.00055068,120]
[356482619,1742511048937,-500.0,0.00055068,120]
[356482620,1742511048946,-500.0,0.00055068,120]
[356482621,1742511048956,-500.0,0.00055068,120]
[356482622,1742511048965,-591.86215961,0.00055068,120]
[356482623,1742511048974,-500.0,0.00055068,120]
[356482624,1742511048983,-500.0,0.00055068,120]
[356482625,1742511048993,-500.0,0.00055068,120]
[356482626,1742511049002,-500.0,0.00055068,120]
[356482627,1742511049011,-500.0,0.00055068,120]
[356482628,1742511049021,-500.0,0.00055068,120]
[356482629,1742511049030,-500.0,0.00055068,120]
[356482630,1742511049039,-500.0,0.00055068,120]
[356482631,1742511049048,-500.0,0.00055068,120]
[356482632,1742511049057,-500.0,0.00055068,120]
[356482633,1742511049066,-500.0,0.00055068,120]
[356482634,1742511049076,-500.0,0.00055068,120]
[356482635,1742511049085,-500.0,0.00055068,120]
[356482636,1742511049227,-500.0,0.00055068,120]
[356482637,1742511049255,-500.0,0.00055068,120]
[356482638,1742511049265,-151.280404,0.00055068,120]
[356482639,1742511049274,-151.0,0.00055068,120]
[356482640,1742511049284,-500.0,0.00055068,120]
[356482641,1742511049293,-500.0,0.00055068,120]
[356482642,1742511049302,-500.0,0.00055068,120]
[356482643,1742511049311,-192.42774457,0.00055068,120]
[356482644,1742511049320,-500.0,0.00055068,120]
[356482645,1742511049329,-500.0,0.00055068,120]
[356482646,1742511049338,-500.0,0.00055068,120]
[356482647,1742511049347,-500.0,0.00055068,120]
[356482648,1742511049356,-500.0,0.00055068,120]
[356482649,1742511049366,-500.0,0.00055068,120]
[356482650,1742511049375,-500.0,0.00055068,120]
[356482651,1742511049384,-500.0,0.00055068,120]
[356482652,1742511049393,-500.0,0.00055068,120]
[356482653,1742511049402,-500.0,0.00055068,120]
[356482654,1742511049411,-500.0,0.00055068,120]
[356482655,1742511049421,-500.0,0.00055068,120]
[356482656,1742511049430,-500.0,0.00055068,120]
[356482657,1742511049440,-500.0,0.00055068,120]
[356482658,1742511049449,-500.0,0.00055068,120]
[356482659,1742511049458,-500.0,0.00055068,120]
[356482660,1742511049468,-500.0,0.00055068,120]
[356482661,1742511049477,-500.0,0.00055068,120]
[356482662,1742511049486,-500.0,0.00055068,120]
[356482663,1742511049496,-500.0,0.00055068,120]
[356482664,1742511049506,-500.0,0.00055068,120]
[356482665,1742511049515,-500.0,0.00055068,120]
[356482666,1742511049525,-500.0,0.00055068,120]
[356482667,1742511049534,-500.0,0.00055068,120]
[356482668,1742511049543,-500.0,0.00055068,120]
[356482669,1742511049552,-500.0,0.00055068,120]
[356482670,1742511049562,-500.0,0.00055068,120]
[356482671,1742511049571,-500.0,0.00055068,120]
[356482672,1742511049580,-500.0,0.00055068,120]
[356482673,1742511049589,-265.90910547,0.00055068,120]
[356482674,1742511049599,-500.0,0.00055068,120]
[356482675,1742511049612,-500.0,0.00055068,120]
[356482676,1742511049621,-151.0,0.00055068,120]
[356482677,1742511049631,-501.49958188,0.00055068,120]
[356482678,1742511049640,-500.0,0.00055068,120]
[356482679,1742511049650,-500.0,0.00055068,120]
[356482680,1742511049659,-500.0,0.00055068,120]
[356482681,1742511049669,-500.0,0.00055068,120]
[356482682,1742511049679,-500.0,0.00055068,120]
[356482683,1742511049689,-500.0,0.00055068,120]
[356482684,1742511049698,-201.62725839,0.00055068,120]
[356482685,1742511049708,-500.0,0.00055068,120]
[356482686,1742511049718,-500.0,0.00055068,120]
[356482687,1742511049727,-151.0,0.00055068,120]
[356482688,1742511049737,-500.0,0.00055068,120]
[356482689,1742511049746,-500.0,0.00055068,120]
[356482690,1742511049756,-500.0,0.00055068,120]
[356482691,1742511049765,-500.0,0.00055068,120]
[356482692,1742511049774,-500.0,0.00055068,120]
[356482693,1742511049784,-500.0,0.00055068,120]
[356482694,1742511049793,-500.0,0.00055068,120]
[356482695,1742511049802,-500.0,0.00055068,120]
[356482696,1742511049811,-500.0,0.00055068,120]
[356482697,1742511049819,-500.0,0.00055068,120]
[356482698,1742511049828,-500.0,0.00055068,120]
[356482699,1742511049837,-500.0,0.00055068,120]
[356482700,1742511049847,-500.0,0.00055068,120]
[356482701,1742511049856,-500.0,0.00055068,120]
[356482702,1742511049866,-500.0,0.00055068,120]
[356482703,1742511049875,-500.0,0.00055068,120]
[356482704,1742511049884,-500.0,0.00055068,120]
[356482705,1742511049893,-500.0,0.00055068,120]
[356482706,1742511049902,-500.0,0.00055068,120]
[356482707,1742511049911,-500.0,0.00055068,120]
[356482708,1742511049920,-500.0,0.00055068,120]
[356482709,1742511049929,-151.0,0.00055068,120]
[356482710,1742511049939,-560.6,0.00055068,120]
[356482711,1742511049948,-500.0,0.00055068,120]
[356482712,1742511049957,-151.0,0.00055068,110]
[356482713,1742511049966,-500.0,0.00055068,120]
[356482714,1742511049975,-500.0,0.00055068,2]
[356482715,1742511049985,-500.0,0.00055068,120]
[356482716,1742511049994,-151.0,0.00055068,120]
[356482717,1742511050003,-500.0,0.00055068,120]
[356482718,1742511050013,-500.0,0.00055068,120]
[356482719,1742511050023,-151.0,0.00055068,120]
[356482720,1742511050032,-151.0,0.00055068,120]
[356482721,1742511050041,-500.0,0.00055068,30]
[356482722,1742511050051,-500.0,0.00055068,120]
[356482723,1742511050060,-500.0,0.00055068,120]
[356482724,1742511050069,-500.0,0.00055068,120]
[356482725,1742511050078,-500.0,0.00055068,120]
[356482726,1742511050087,-500.0,0.00055068,120]
[356482727,1742511050096,-500.0,0.00055068,120]
[356482728,1742511050106,-500.0,0.00055068,120]
[356482729,1742511050115,-500.0,0.00055068,120]
[356482730,1742511050125,-500.0,0.00055068,120]
[356482731,1742511050134,-500.0,0.00055068,120]
[356482732,1742511050143,-500.0,0.00055068,120]
[356482733,1742511050152,-500.0,0.00055068,120]
[356482734,1742511050162,-500.0,0.00055068,120]
[356482735,1742511050171,-500.0,0.00055068,120]
[356482736,1742511050181,-500.0,0.00055068,120]
[356482737,1742511050190,-500.0,0.00055068,120]
[356482738,1742511050199,-500.0,0.00055068,120]
[356482739,1742511050208,-500.0,0.00055068,120]
[356482740,1742511050218,-500.0,0.00055068,120]
[356482741,1742511050227,-500.0,0.00055068,120]
[356482742,1742511050236,-500.0,0.00055068,120]
[356482743,1742511050245,-532.32675442,0.00055068,120]
[356482744,1742511050254,-500.0,0.00055068,120]
[356482745,1742511050264,-500.0,0.00055068,120]
[356482746,1742511050273,-151.0,0.00055068,120]
[356482747,1742511050282,-500.0,0.00055068,120]
[356482748,1742511050291,-500.0,0.00055068,120]
[356482749,1742511050300,-500.0,0.00055068,120]
[356482750,1742511050309,-151.0,0.00055068,120]
[356482751,1742511050319,-500.0,0.00055068,120]
[356482752,1742511050328,-500.0,0.00055068,120]
[356482753,1742511050338,-500.0,0.00055068,120]
[356482754,1742511050347,-500.0,0.00055068,120]
[356482755,1742511050356,-500.0,0.00055068,120]
[356482756,1742511050366,-500.0,0.00055068,120]
[356482757,1742511050375,-500.0,0.00055068,120]
[356482758,1742511050384,-500.0,0.00055068,120]
[356482759,1742511050393,-500.0,0.00055068,120]
[356482760,1742511050402,-151.0,0.00055068,120]
[356482761,1742511050412,-500.0,0.00055068,120]
[356482762,1742511050421,-500.0,0.00055068,120]
[356482763,1742511050430,-500.0,0.00055068,120]
[356482764,1742511050439,-184.73897905,0.00055068,120]
[356482765,1742511050449,-500.0,0.00055068,120]
[356482766,1742511050458,-500.0,0.00055068,120]
[356482767,1742511050467,-500.0,0.00055068,120]
[356482768,1742511050476,-500.0,0.00055068,120]
[356482769,1742511050485,-500.0,0.00055068,120]
[356482770,1742511050494,-500.0,0.00055068,120]
[356482771,1742511050503,-500.0,0.00055068,120]
[356482772,1742511050513,-500.0,0.00055068,120]
[356482773,1742511050522,-198.84501551,0.00055068,120]
[356482774,1742511050800,-301.15498449,0.00055068,120]
[356482775,1742511050809,-30.754519,0.00055068,120]
[356482776,1742511051583,-36.93373966,0.00055068,120]
[356482777,1742511053034,-780.28,0.000133,2]
[356482778,1742511053044,-61.82742365,0.00041418,2]
[356482779,1742511053056,-91.17257635,0.00041418,2]
[356482780,1742511053065,-175.14,0.00043277,2]
[356482781,1742511053074,-150.0,0.00051,14]
[356482782,1742511053084,-65.4806228,0.00055068,120]
[356482783,1742511163305,150.0,0.00031513,30]
[356482790,1742511842273,-150.0,0.00012209,2]
[356482791,1742511849989,-161.44191272,0.00012209,2]
[356482809,1742512231846,-204.88,0.0001219,2]
[356482810,1742512231856,-150.0,0.00012199,2]
[356482811,1742512231866,-38.55808728,0.00012209,2]
[356482812,1742512231875,-150.0,0.0001269,2]
[356482813,1742512231885,-350.0,0.00013171,2]
[356482814,1742512231895,-150.0,0.00013409,2]
[356482815,1742512231904,-150.29,0.00013699,2]
[356482816,1742512231915,-261.42362134,0.00016775,2]
[356482817,1742512231929,-88.57637866,0.00016775,2]
[356482818,1742512231940,-1670.25386463,0.00023647,2]
[356482819,1742512231951,-264.00903773,0.00023647,2]
[356482820,1742512231962,-420.54461945,0.00023647,2]
[356482821,1742512231975,-5918.82512834,0.00023647,2]
[356482822,1742512231989,-196.72,0.00026849,2]
[356482823,1742512231998,-399.58788131,0.000269,4]
[356482824,1742512232008,-500.0,0.000269,2]
[356482825,1742512232019,-2587.543574,0.00027,2]
[356482826,1742512232028,-399.58788103,0.00029417,5]
[356482827,1742512232038,-150.0,0.00031493,2]
[356482828,1742512232047,-399.58788103,0.00031934,6]
[356482829,1742512232058,-196.72,0.00032646,2]
[356482830,1742512232068,-208.74860851,0.00032877,2]
[356482831,1742512232077,-150.29,0.00032877,2]
[356482832,1742512232087,-79.29453605,0.00033,14]
[356482919,1742512237830,-438.61755495,0.00033,14]
[356482920,1742512237840,-155.46,0.00033689,2]
[356482921,1742512237849,-399.58788103,0.00034452,6]
[356482922,1742512237859,-399.58788103,0.00036969,7]
[356482923,1742512237869,-12816.5026,0.00037022,7]
[356482924,1742512237879,-340.0,0.00038277,2]
[356482925,1742512237889,-1014.0,0.00038277,2]
[356482926,1742512237898,-2274.22607521,0.00038294,2]
[356482927,1742512237908,-196.72,0.00038443,2]
[356482929,1742512237918,-399.58788103,0.00039486,8]
[356482930,1742512237927,-894.171,0.000399,56]
[356482931,1742512237937,-819.0,0.00041,60]
[356482932,1742512237946,-23900.0,0.00041076,2]
[356482933,1742512237956,-259.49,0.00041359,2]
[356482934,1742512237965,-279.88,0.00042,120]
[356482935,1742512237974,-382.59,0.00042,120]
[356482936,1742512237986,-4365.27,0.00042,120]
[356482937,1742512237999,-399.58788103,0.00042003,9]
[356482938,1742512238008,-1645.67,0.00042112,2]
[356482939,1742512238018,-1567.74008441,0.00042462,2]
[356482940,1742512238028,-270.88,0.00042548,2]
[356482941,1742512238037,-13747.38,0.00042597,120]
[356482942,1742512238047,-1000.0,0.00042617,120]
[356482943,1742512238056,-150.01,0.00043235,2]
[356482944,1742512238066,-250.0,0.00043277,2]
[356482945,1742512238077,-290.34,0.00043277,2]
[356482946,1742512238086,-170.21,0.00043277,2]
[356482947,1742512238096,-1000.0,0.00043277,2]
[356482948,1742512238105,-173.46,0.00043277,2]
[356482949,1742512238115,-152.16,0.00043332,120]
[356482950,1742512238125,-259.49,0.00043623,2]
[356482951,1742512238134,-2751.0,0.00043739,120]
[356482952,1742512238144,-200.0,0.00043815,2]
[356482953,1742512238153,-196.72,0.00044239,2]
[356482954,1742512238162,-399.58788103,0.00044521,10]
[356482955,1742512238173,-300.0,0.00044647,2]
[356482956,1742512238183,-150.0,0.00044762,2]
[356482957,1742512238194,-150.01,0.00045673,2]
[356482958,1742512238204,-259.49,0.00045887,2]
[356482959,1742512238214,-517.912091,0.000459,65]
[356482960,1742512238223,-300.0,0.00046017,2]
[356482961,1742512238233,-1617.8019669,0.00047028,2]
[356482962,1742512238243,-399.58788103,0.00047038,10]
[356482963,1742512238252,-150.0,0.000474,2]
[356482964,1742512238262,-150.01,0.00048111,2]
[356482965,1742512238272,-151.3274033,0.00048133,2]
[356482966,1742512238281,-259.49,0.00048151,2]
[356482967,1742512238291,-1000.0,0.00048687,2]
[356482968,1742512238301,-500.0,0.00048687,120]
[356482969,1742512238311,-500.0,0.00048687,120]
[356482970,1742512238320,-500.0,0.00048687,120]
[356482971,1742512238330,-500.0,0.00048687,120]
[356482972,1742512238339,-959.0,0.00048687,120]
[356482973,1742512238350,-500.0,0.00048687,120]
[356482974,1742512238359,-500.0,0.00048687,120]
[356482975,1742512238369,-500.0,0.00048687,120]
[356482976,1742512238379,-500.0,0.00048687,120]
[356482977,1742512238388,-500.0,0.00048687,120]
[356482978,1742512238398,-500.0,0.00048687,120]
[356482979,1742512238408,-500.0,0.00048687,120]
[356482980,1742512238417,-500.0,0.00048687,120]
[356482981,1742512238427,-500.0,0.00048687,120]
[356482982,1742512238436,-500.0,0.00048687,120]
[356482983,1742512238446,-500.0,0.00048687,120]
[356482984,1742512238455,-500.0,0.00048687,120]
[356482985,1742512238464,-500.0,0.00048687,120]
[356482986,1742512238473,-500.0,0.00048687,120]
[356482987,1742512238483,-500.0,0.00048687,120]
[356482988,1742512238492,-500.0,0.00048687,120]
[356482989,1742512238501,-500.0,0.00048687,120]
[356482990,1742512238510,-500.0,0.00048687,120]
[356482991,1742512238519,-500.0,0.00048687,120]
[356482992,1742512238528,-500.0,0.00048687,120]
[356482993,1742512238537,-500.0,0.00048687,120]
[356482994,1742512238546,-500.0,0.00048687,120]
[356482995,1742512238556,-500.0,0.00048687,120]
[356482996,1742512238565,-500.0,0.00048687,120]
[356482997,1742512238574,-500.0,0.00048687,120]
[356482998,1742512238583,-500.0,0.00048687,120]
[356482999,1742512238592,-500.0,0.00048687,120]
[356483000,1742512238602,-500.0,0.00048687,120]
[356483001,1742512238611,-500.0,0.00048687,120]
[356483002,1742512238622,-500.0,0.00048687,120]
[356483003,1742512238631,-500.0,0.00048687,120]
[356483004,1742512238640,-500.0,0.00048687,120]
[356483005,1742512238650,-500.0,0.00048687,120]
[356483006,1742512238659,-500.0,0.00048687,120]
[356483007,1742512238668,-500.0,0.00048687,120]
[356483008,1742512238677,-500.0,0.00048687,120]
[356483009,1742512238686,-500.0,0.00048687,120]
[356483010,1742512238695,-500.0,0.00048687,120]
[356483011,1742512238704,-500.0,0.00048687,120]
[356483012,1742512238713,-500.0,0.00048687,120]
[356483013,1742512238723,-500.0,0.00048687,120]
[356483014,1742512238732,-500.0,0.00048687,120]
[356483015,1742512238741,-500.0,0.00048687,120]
[356483016,1742512238751,-500.0,0.00048687,120]
[356483017,1742512238759,-500.0,0.00048687,120]
[356483018,1742512238769,-500.0,0.00048687,120]
[356483019,1742512238779,-500.0,0.00048687,120]
[356483020,1742512238788,-500.0,0.00048687,120]
[356483021,1742512238797,-514.0,0.00048687,120]
[356483022,1742512238807,-328.79,0.00048791,2]
[356483023,1742512238817,-150.0,0.00049113,30]
[356483024,1742512238827,-373.25845852,0.00049113,30]
[356483025,1742512238838,-2608.9023,0.000492,2]
[356483026,1742512238848,-156.80665012,0.000492,120]
[356483027,1742512238858,-2000.0,0.000493,2]
[356483028,1742512238868,-500.0,0.000493,120]
[356483029,1742512238879,-500.0,0.000493,120]
[356483030,1742512238889,-500.0,0.000493,120]
[356483031,1742512238899,-500.0,0.000493,120]
[356483032,1742512238909,-500.0,0.000493,120]
[356483033,1742512238919,-500.0,0.000493,120]
[356483034,1742512238928,-500.0,0.000493,120]
[356483035,1742512238938,-500.0,0.000493,120]
[356483036,1742512238947,-500.0,0.000493,120]
[356483037,1742512238957,-500.0,0.000493,120]
[356483038,1742512238966,-500.0,0.000493,120]
[356483039,1742512238975,-500.0,0.000493,120]
[356483040,1742512238988,-500.0,0.000493,120]
[356483041,1742512238998,-500.0,0.000493,120]
[356483042,1742512239007,-500.0,0.000493,120]
[356483043,1742512239018,-500.0,0.000493,120]
[356483044,1742512239027,-500.0,0.000493,120]
[356483045,1742512239038,-500.0,0.000493,120]
[356483046,1742512239047,-500.0,0.000493,120]
[356483047,1742512239056,-500.0,0.000493,120]
[356483048,1742512239067,-500.0,0.000493,120]
[356483049,1742512239077,-500.0,0.000493,120]
[356483050,1742512239086,-500.0,0.000493,120]
[356483051,1742512239095,-500.0,0.000493,120]
[356483052,1742512239105,-500.0,0.000493,120]
[356483053,1742512239114,-500.0,0.000493,120]
[356483054,1742512239124,-500.0,0.000493,120]
[356483055,1742512239133,-500.0,0.000493,120]
[356483056,1742512239143,-500.0,0.000493,120]
[356483057,1742512239154,-500.0,0.000493,120]
[356483058,1742512239163,-500.0,0.000493,120]
[356483059,1742512239173,-500.0,0.000493,120]
[356483060,1742512239183,-500.0,0.000493,120]
[356483061,1742512239192,-500.0,0.000493,120]
[356483062,1742512239202,-500.0,0.000493,120]
[356483063,1742512239211,-500.0,0.000493,120]
[356483064,1742512239221,-500.0,0.000493,120]
[356483065,1742512239230,-500.0,0.000493,120]
[356483066,1742512239239,-500.0,0.000493,120]
[356483067,1742512239248,-500.0,0.000493,120]
[356483068,1742512239258,-500.0,0.000493,120]
[356483069,1742512239267,-500.0,0.000493,120]
[356483070,1742512239277,-500.0,0.000493,120]
[356483071,1742512239286,-500.0,0.000493,120]
[356483072,1742512239296,-500.0,0.000493,120]
[356483073,1742512239305,-500.0,0.000493,120]
[356483074,1742512239315,-500.0,0.000493,120]
[356483075,1742512239324,-500.0,0.000493,120]
[356483076,1742512239334,-500.0,0.000493,120]
[356483077,1742512239343,-500.0,0.000493,120]
[356483078,1742512239353,-500.0,0.000493,120]
[356483079,1742512239362,-500.0,0.000493,120]
[356483080,1742512239371,-500.0,0.000493,120]
[356483081,1742512239381,-500.0,0.000493,120]
[356483082,1742512239390,-500.0,0.000493,120]
[356483083,1742512239399,-500.0,0.000493,120]
[356483084,1742512239408,-500.0,0.000493,120]
[356483085,1742512239417,-500.0,0.000493,120]
[356483086,1742512239427,-500.0,0.000493,120]
[356483087,1742512239438,-500.0,0.000493,120]
[356483088,1742512239450,-500.0,0.000493,120]
[356483089,1742512239459,-500.0,0.000493,120]
[356483090,1742512239469,-500.0,0.000493,120]
[356483091,1742512239480,-500.0,0.000493,120]
[356483092,1742512239489,-500.0,0.000493,120]
[356483093,1742512239499,-500.0,0.000493,120]
[356483094,1742512239509,-500.0,0.000493,120]
[356483095,1742512239518,-500.0,0.000493,120]
[356483096,1742512239528,-500.0,0.000493,120]
[356483097,1742512239537,-500.0,0.000493,120]
[356483098,1742512239546,-500.0,0.000493,120]
[356483099,1742512239556,-500.0,0.000493,120]
[356483100,1742512239565,-500.0,0.000493,120]
[356483101,1742512239574,-500.0,0.000493,120]
[356483102,1742512239584,-500.0,0.000493,120]
[356483103,1742512239593,-500.0,0.000493,120]
[356483104,1742512239603,-500.0,0.000493,120]
[356483105,1742512239612,-500.0,0.000493,120]
[356483106,1742512239622,-500.0,0.000493,120]
[356483107,1742512239631,-500.0,0.000493,120]
[356483108,1742512239641,-500.0,0.000493,120]
[356483109,1742512239650,-500.0,0.000493,120]
[356483110,1742512239660,-500.0,0.000493,120]
[356483111,1742512239669,-500.0,0.000493,120]
[356483112,1742512239678,-500.0,0.000493,120]
[356483113,1742512239687,-500.0,0.000493,120]
[356483114,1742512239697,-500.0,0.000493,120]
[356483115,1742512239706,-500.0,0.000493,120]
[356483116,1742512239715,-500.0,0.000493,120]
[356483118,1742512239725,-500.0,0.000493,120]
[356483119,1742512239734,-500.0,0.000493,120]
[356483120,1742512239743,-500.0,0.000493,120]
[356483121,1742512239752,-500.0,0.000493,120]
[356483122,1742512239761,-500.0,0.000493,120]
[356483123,1742512239770,-500.0,0.000493,120]
[356483124,1742512239780,-500.0,0.000493,120]
[356483125,1742512239789,-500.0,0.000493,120]
[356483126,1742512239798,-500.0,0.000493,120]
[356483127,1742512239807,-500.0,0.000493,120]
[356483128,1742512239817,-500.0,0.000493,120]
[356483129,1742512239826,-309.28910481,0.000493,120]
[356483130,1742512239840,-190.71089519,0.000493,120]
[356483131,1742512239849,-127.19799738,0.000493,120]
[356483132,1742512239860,-372.80200262,0.000493,120]
[356483133,1742512239870,-500.0,0.000493,120]
[356483134,1742512239880,-500.0,0.000493,120]
[356483135,1742512239889,-500.0,0.000493,120]
[356483136,1742512239899,-236.83971317,0.000493,120]
[356483137,1742512239994,-263.16028683,0.000493,120]
[356483138,1742512240003,-500.0,0.000493,120]
[356483139,1742512240012,-500.0,0.000493,120]
[356483140,1742512240172,-500.0,0.000493,120]
[356483141,1742512240183,-500.0,0.000493,120]
[356483142,1742512240193,-500.0,0.000493,120]
[356483143,1742512240203,-500.0,0.000493,120]
[356483144,1742512240212,-500.0,0.000493,120]
[356483145,1742512240222,-500.0,0.000493,120]
[356483146,1742512240231,-500.0,0.000493,120]
[356483147,1742512240241,-500.0,0.000493,120]
[356483148,1742512240251,-500.0,0.000493,120]
[356483149,1742512240260,-500.0,0.000493,120]
[356483150,1742512240270,-500.0,0.000493,120]
[356483151,1742512240279,-500.0,0.000493,120]
[356483152,1742512240289,-500.0,0.000493,120]
[356483153,1742512240298,-500.0,0.000493,120]
[356483154,1742512240309,-500.0,0.000493,120]
[356483155,1742512240318,-500.0,0.000493,120]
[356483156,1742512240327,-500.0,0.000493,120]
[356483157,1742512240337,-500.0,0.000493,120]
[356483158,1742512240346,-387.32097053,0.000493,120]
[356483159,1742512240358,-112.67902947,0.000493,120]
[356483160,1742512240368,-500.0,0.000493,120]
[356483161,1742512240377,-500.0,0.000493,120]
[356483162,1742512240386,-500.0,0.000493,120]
[356483163,1742512240395,-500.0,0.000493,120]
[356483164,1742512240405,-500.0,0.000493,120]
[356483165,1742512240415,-500.0,0.000493,120]
[356483166,1742512240424,-500.0,0.000493,120]
[356483167,1742512240433,-500.0,0.000493,120]
[356483168,1742512240443,-763.06597053,0.000493,120]
[356483169,1742512240454,-194.93402947,0.000493,120]
[356483170,1742512240463,-444.15951637,0.000493,120]
[356483171,1742512240494,-55.84048363,0.000493,120]
[356483172,1742512240503,-500.0,0.000493,120]
[356483173,1742512240512,-106.84260799,0.000493,120]
[356483174,1742512240523,-306.4868047,0.000493,120]
[356483175,1742512240535,-86.67058731,0.000493,120]
[356483176,1742512240547,-360.62941269,0.000493,120]
[356483177,1742512240564,-139.37058731,0.000493,120]
[356483178,1742512240574,-500.0,0.000493,120]
[356483179,1742512240583,-500.0,0.000493,120]
[356483180,1742512240593,-500.0,0.000493,120]
[356483181,1742512240602,-500.0,0.000493,120]
[356483182,1742512240612,-500.0,0.000493,120]
[356483183,1742512240621,-500.0,0.000493,120]
[356483184,1742512240630,-500.0,0.000493,120]
[356483185,1742512240640,-500.0,0.000493,120]
[356483186,1742512240649,-500.0,0.000493,120]
[356483187,1742512240659,-500.0,0.000493,120]
[356483188,1742512240668,-500.0,0.000493,120]
[356483189,1742512240678,-500.0,0.000493,120]
[356483190,1742512240687,-500.0,0.000493,120]
[356483191,1742512240697,-181.66612542,0.000493,120]
[356483192,1742512240708,-318.33387458,0.000493,120]
[356483193,1742512240718,-500.0,0.000493,120]
[356483194,1742512240727,-753.0,0.000493,120]
[356483195,1742512240736,-399.58788103,0.00049555,11]
[356483196,1742512240746,-166.6,0.000498,7]
[356483197,1742512240755,-196.72,0.00050036,2]
[356483198,1742512240764,-259.49,0.00050415,2]
[356483199,1742512240774,-155.46,0.00050534,2]
[356483200,1742512240783,-150.01,0.00050549,120]
[356483201,1742512240792,-156.8066501,0.0005114,120]
[356483202,1742512240802,-152.16,0.00051542,120]
[356483203,1742512240813,-6972.36640049,0.00052,15]
[356483204,1742512240823,-200.0,0.00052,120]
[356483205,1742512240832,-399.58788103,0.00052072,12]
[356483206,1742512240842,-2000.0,0.000521,2]
[356483207,1742512240852,-259.49,0.00052679,2]
[356483208,1742512240862,-6972.36640044,0.00052767,15]
[356483209,1742512240871,-150.01,0.00052987,120]
[356483210,1742512240882,-156.8066501,0.0005308,120]
[356483211,1742512240892,-6972.36640044,0.00053533,15]
[356483212,1742512240903,-270.88,0.00053781,2]
[356483213,1742512240912,-9977.3152,0.00053881,2]
[356483214,1742512240922,-1086.0,0.00053886,30]
[356483215,1742512240932,-3259.46,0.0005396,2]
[356483216,1742512240942,-1028.63389429,0.00053967,30]
[356483217,1742512240952,-1072.86820291,0.00053967,30]
[356483218,1742512240961,-190.82052369,0.0005398,120]
[356483219,1742512240970,-500.0,0.0005398,120]
[356483220,1742512240981,-343.22194154,0.0005398,120]
[356483221,1742512240993,-500.0,0.0005398,120]
[356483222,1742512241002,-500.0,0.0005398,120]